[Event "Titled Tuesday Blitz March 21 Late 2023"]
[White "Urazayev, Arystanbek"]
[Black "Rastbod, Ali"]
[WhiteFideId "13709810"]
[BlackFideId "12567477"]
[WhiteElo "2479"]
[BlackElo "2211"]
[Result "1-0"]
[Round "02"]
[TimeControl "180+2"]
[Date "2023.03.21"]
[WhiteClock "0:00:28"]
[BlackClock "0:00:03"]

1. d4 {[%clk 0:03:00]}  Nf6 {[%clk 0:03:00]} 2. c4 {[%clk 0:03:01]}  e6 {[%clk 0:03:00]} 3. Nf3 {[%clk 0:03:01]}  Bb4+ {[%clk 0:03:00]} 4. Bd2 {[%clk 0:03:01]}  Be7 {[%clk 0:03:00]} 5. g3 {[%clk 0:03:00]}  b6 {[%clk 0:02:52]} 6. Bg2 {[%clk 0:03:00]}  Bb7 {[%clk 0:02:52]} 7. O-O {[%clk 0:03:01]}  O-O {[%clk 0:02:53]} 8. Nc3 {[%clk 0:02:56]}  Ne4 {[%clk 0:02:53]} 9. Re1 {[%clk 0:02:48]}  Nxc3 {[%clk 0:02:37]} 10. Bxc3 {[%clk 0:02:47]}  Be4 {[%clk 0:02:38]} 11. d5 {[%clk 0:02:43]}  Bf6 {[%clk 0:02:36]} 12. Qd2 {[%clk 0:02:30]}  d6 {[%clk 0:02:31]} 13. dxe6 {[%clk 0:02:22]}  fxe6 {[%clk 0:02:28]} 14. Qe3 {[%clk 0:02:21]}  d5 {[%clk 0:02:07]} 15. Nd2 {[%clk 0:02:06]}  Bxg2 {[%clk 0:01:51]} 16. Qxe6+ {[%clk 0:02:05]}  Kh8 {[%clk 0:01:50]} 17. Kxg2 {[%clk 0:02:06]}  d4 {[%clk 0:01:44]} 18. Bb4 {[%clk 0:02:06]}  c5 {[%clk 0:01:41]} 19. Ba3 {[%clk 0:02:06]}  Re8 {[%clk 0:01:37]} 20. Qd5 {[%clk 0:01:57]}  Qxd5+ {[%clk 0:01:36]} 21. cxd5 {[%clk 0:01:58]}  Na6 {[%clk 0:01:36]} 22. e4 {[%clk 0:01:58]}  dxe3 {[%clk 0:01:27]} 23. fxe3 {[%clk 0:01:53]}  b5 {[%clk 0:01:25]} 24. e4 {[%clk 0:01:22]}  b4 {[%clk 0:01:17]} 25. Rac1 {[%clk 0:01:17]}  Bg5 {[%clk 0:01:10]} 26. Rc2 {[%clk 0:01:12]}  Bxd2 {[%clk 0:01:07]} 27. Rxd2 {[%clk 0:01:12]}  Re5 {[%clk 0:01:03]} 28. d6 {[%clk 0:01:08]}  Rd8 {[%clk 0:01:00]} 29. Kf3 {[%clk 0:00:49]}  g5 {[%clk 0:00:55]} 30. h4 {[%clk 0:00:48]}  h6 {[%clk 0:00:56]} 31. hxg5 {[%clk 0:00:48]}  hxg5 {[%clk 0:00:57]} 32. Rh1+ {[%clk 0:00:47]}  Kg7 {[%clk 0:00:57]} 33. Rdh2 {[%clk 0:00:48]}  Re6 {[%clk 0:00:24]} 34. e5 {[%clk 0:00:33]}  Ree8 {[%clk 0:00:07]} 35. Rh7+ {[%clk 0:00:33]}  Kg8 {[%clk 0:00:07]} 36. Ke4 {[%clk 0:00:29]}  bxa3 {[%clk 0:00:04]} 37. Kf5 {[%clk 0:00:28]}  Nb8 {[%clk 0:00:03]} 38. Rh8+ {[%clk 0:00:28]} 1-0


[Site "https://www.chess.com"]

[Event "Titled Tuesday Blitz March 21 Late 2023"]
[White "Papp, Levente"]
[Black "Raja Rithvik R"]
[WhiteFideId "751243"]
[BlackFideId "35007394"]
[WhiteElo "2380"]
[BlackElo "2402"]
[Result "1-0"]
[Round "02"]
[TimeControl "180+2"]
[Date "2023.03.21"]
[WhiteClock "0:00:10"]
[BlackClock "0:00:10"]

1. b3 {[%clk 0:03:00]}  e5 {[%clk 0:02:57]} 2. Bb2 {[%clk 0:03:00]}  Nc6 {[%clk 0:02:58]} 3. c4 {[%clk 0:03:01]}  g6 {[%clk 0:02:58]} 4. g3 {[%clk 0:02:58]}  Bg7 {[%clk 0:02:58]} 5. Bg2 {[%clk 0:02:59]}  Nge7 {[%clk 0:02:59]} 6. Nc3 {[%clk 0:03:00]}  O-O {[%clk 0:02:59]} 7. e3 {[%clk 0:03:00]}  d6 {[%clk 0:02:56]} 8. Nge2 {[%clk 0:03:00]}  f5 {[%clk 0:02:57]} 9. O-O {[%clk 0:02:59]}  e4 {[%clk 0:02:37]} 10. d3 {[%clk 0:02:59]}  exd3 {[%clk 0:02:36]} 11. Nf4 {[%clk 0:02:59]}  Ne5 {[%clk 0:02:29]} 12. Nxd3 {[%clk 0:02:58]}  Be6 {[%clk 0:02:28]} 13. Nxe5 {[%clk 0:02:51]}  Bxe5 {[%clk 0:02:28]} 14. Bxb7 {[%clk 0:02:51]}  Rb8 {[%clk 0:02:28]} 15. Bd5 {[%clk 0:02:36]}  Nxd5 {[%clk 0:02:28]} 16. cxd5 {[%clk 0:02:35]}  Bf7 {[%clk 0:02:28]} 17. Na4 {[%clk 0:02:12]}  Qf6 {[%clk 0:02:14]} 18. Bxe5 {[%clk 0:01:57]}  Qxe5 {[%clk 0:02:15]} 19. Rc1 {[%clk 0:01:57]}  Bxd5 {[%clk 0:01:55]} 20. Rxc7 {[%clk 0:01:26]}  Rbc8 {[%clk 0:01:37]} 21. Rxc8 {[%clk 0:01:05]}  Rxc8 {[%clk 0:01:38]} 22. Qd2 {[%clk 0:00:52]}  Bb7 {[%clk 0:01:15]} 23. Rc1 {[%clk 0:00:39]}  Rxc1+ {[%clk 0:00:51]} 24. Qxc1 {[%clk 0:00:40]}  Kf8 {[%clk 0:00:33]} 25. Kf1 {[%clk 0:00:28]}  Qe4 {[%clk 0:00:27]} 26. Qb2 {[%clk 0:00:09]}  Qd3+ {[%clk 0:00:11]} 27. Ke1 {[%clk 0:00:07]}  Bf3 {[%clk 0:00:12]} 28. Nc3 {[%clk 0:00:04]}  d5 {[%clk 0:00:06]} 29. Qd2 {[%clk 0:00:05]}  Qa6 {[%clk 0:00:05]} 30. Qd4 {[%clk 0:00:05]}  Qa3 {[%clk 0:00:04]} 31. Qh8+ {[%clk 0:00:05]}  Kf7 {[%clk 0:00:05]} 32. Qxh7+ {[%clk 0:00:05]}  Kf6 {[%clk 0:00:06]} 33. Qh8+ {[%clk 0:00:05]}  Kf7 {[%clk 0:00:06]} 34. Qh7+ {[%clk 0:00:06]}  Kf8 {[%clk 0:00:06]} 35. Qh8+ {[%clk 0:00:06]}  Ke7 {[%clk 0:00:07]} 36. Qe5+ {[%clk 0:00:05]}  Kf7 {[%clk 0:00:06]} 37. Qc7+ {[%clk 0:00:05]}  Kg8 {[%clk 0:00:07]} 38. Qd8+ {[%clk 0:00:04]}  Kf7 {[%clk 0:00:05]} 39. Qc7+ {[%clk 0:00:04]}  Kf6 {[%clk 0:00:05]} 40. Qd8+ {[%clk 0:00:04]}  Kg7 {[%clk 0:00:04]} 41. Qc7+ {[%clk 0:00:03]}  Kh6 {[%clk 0:00:04]} 42. Qf4+ {[%clk 0:00:03]}  g5 {[%clk 0:00:04]} 43. Qxf3 {[%clk 0:00:04]}  Qc1+ {[%clk 0:00:05]} 44. Nd1 {[%clk 0:00:05]}  Qc2 {[%clk 0:00:05]} 45. Qxd5 {[%clk 0:00:05]}  g4 {[%clk 0:00:05]} 46. Qd6+ {[%clk 0:00:05]}  Kg5 {[%clk 0:00:05]} 47. Qd2 {[%clk 0:00:06]}  Qe4 {[%clk 0:00:05]} 48. Nc3 {[%clk 0:00:05]}  Qh1+ {[%clk 0:00:06]} 49. Ke2 {[%clk 0:00:06]}  Qf3+ {[%clk 0:00:06]} 50. Kd3 {[%clk 0:00:06]}  Qh1 {[%clk 0:00:05]} 51. e4+ {[%clk 0:00:06]}  Kf6 {[%clk 0:00:04]} 52. exf5 {[%clk 0:00:07]}  Qf3+ {[%clk 0:00:04]} 53. Qe3 {[%clk 0:00:07]}  Qxf5+ {[%clk 0:00:05]} 54. Ne4+ {[%clk 0:00:07]}  Kg6 {[%clk 0:00:04]} 55. Qf4 {[%clk 0:00:07]}  Qb5+ {[%clk 0:00:05]} 56. Ke3 {[%clk 0:00:08]}  Qb6+ {[%clk 0:00:05]} 57. Ke2 {[%clk 0:00:08]}  Qa6+ {[%clk 0:00:05]} 58. Ke1 {[%clk 0:00:08]}  Qxa2 {[%clk 0:00:05]} 59. Qg5+ {[%clk 0:00:08]}  Kf7 {[%clk 0:00:06]} 60. Qf6+ {[%clk 0:00:07]}  Ke8 {[%clk 0:00:07]} 61. Qe6+ {[%clk 0:00:07]}  Kf8 {[%clk 0:00:07]} 62. Qxg4 {[%clk 0:00:07]}  Qb1+ {[%clk 0:00:06]} 63. Ke2 {[%clk 0:00:07]}  Qc2+ {[%clk 0:00:07]} 64. Kf1 {[%clk 0:00:07]}  Qd3+ {[%clk 0:00:06]} 65. Kg2 {[%clk 0:00:08]}  Qxb3 {[%clk 0:00:07]} 66. Qc8+ {[%clk 0:00:08]}  Kg7 {[%clk 0:00:08]} 67. Qc7+ {[%clk 0:00:08]}  Kg6 {[%clk 0:00:08]} 68. Qxa7 {[%clk 0:00:08]}  Qd5 {[%clk 0:00:09]} 69. Qe3 {[%clk 0:00:09]}  Kf5 {[%clk 0:00:09]} 70. Qg5+ {[%clk 0:00:09]}  Kxe4 {[%clk 0:00:10]} 71. Qxd5+ {[%clk 0:00:09]}  Kxd5 {[%clk 0:00:10]} 72. h4 {[%clk 0:00:10]} 1-0


[Site "https://www.chess.com"]

[Event "Titled Tuesday Blitz March 21 Late 2023"]
[White "Koellner, Ruben Gideon"]
[Black "Burg, Twan"]
[WhiteFideId "12993093"]
[BlackFideId "1010697"]
[WhiteElo "2303"]
[BlackElo "2422"]
[Result "1-0"]
[Round "02"]
[TimeControl "180+2"]
[Date "2023.03.21"]
[WhiteClock "0:00:05"]
[BlackClock "0:00:31"]

1. d4 {[%clk 0:03:00]}  Nf6 {[%clk 0:02:59]} 2. Nf3 {[%clk 0:02:59]}  d5 {[%clk 0:02:59]} 3. e3 {[%clk 0:02:59]}  c6 {[%clk 0:02:52]} 4. Nbd2 {[%clk 0:02:55]}  Bf5 {[%clk 0:02:46]} 5. Ne5 {[%clk 0:02:55]}  Nbd7 {[%clk 0:02:28]} 6. g4 {[%clk 0:02:55]}  Nxe5 {[%clk 0:02:28]} 7. gxf5 {[%clk 0:02:51]}  Ned7 {[%clk 0:02:26]} 8. Bd3 {[%clk 0:02:45]}  e5 {[%clk 0:02:10]} 9. fxe6 {[%clk 0:02:44]}  fxe6 {[%clk 0:02:10]} 10. f4 {[%clk 0:02:43]}  Qc7 {[%clk 0:02:02]} 11. Nf3 {[%clk 0:02:39]}  O-O-O {[%clk 0:02:00]} 12. Ng5 {[%clk 0:02:36]}  Re8 {[%clk 0:01:57]} 13. Rg1 {[%clk 0:02:26]}  Re7 {[%clk 0:01:42]} 14. Bd2 {[%clk 0:02:18]}  h6 {[%clk 0:01:41]} 15. Nf3 {[%clk 0:02:17]}  g5 {[%clk 0:01:41]} 16. Ne5 {[%clk 0:02:14]}  Nxe5 {[%clk 0:01:33]} 17. fxe5 {[%clk 0:02:13]}  Nd7 {[%clk 0:01:28]} 18. Qh5 {[%clk 0:02:09]}  Bg7 {[%clk 0:01:16]} 19. O-O-O {[%clk 0:02:03]}  c5 {[%clk 0:01:14]} 20. c3 {[%clk 0:02:01]}  cxd4 {[%clk 0:01:10]} 21. exd4 {[%clk 0:02:02]}  Kb8 {[%clk 0:01:09]} 22. Kb1 {[%clk 0:01:59]}  Nb6 {[%clk 0:01:05]} 23. Rdf1 {[%clk 0:01:57]}  Nc4 {[%clk 0:01:05]} 24. Bc1 {[%clk 0:01:56]}  Rc8 {[%clk 0:01:04]} 25. Rf2 {[%clk 0:01:49]}  Qb6 {[%clk 0:01:03]} 26. Ka1 {[%clk 0:01:44]}  Nxe5 {[%clk 0:00:58]} 27. Bb1 {[%clk 0:01:41]}  Nc4 {[%clk 0:00:55]} 28. Rf7 {[%clk 0:01:39]}  Rec7 {[%clk 0:00:35]} 29. Rgf1 {[%clk 0:01:30]}  a5 {[%clk 0:00:35]} 30. Rxc7 {[%clk 0:01:30]}  Rxc7 {[%clk 0:00:34]} 31. Qe8+ {[%clk 0:01:29]}  Ka7 {[%clk 0:00:34]} 32. Re1 {[%clk 0:01:24]}  e5 {[%clk 0:00:34]} 33. dxe5 {[%clk 0:01:22]}  Bxe5 {[%clk 0:00:35]} 34. Rxe5 {[%clk 0:01:20]}  Nxe5 {[%clk 0:00:35]} 35. Qxe5 {[%clk 0:01:21]}  Qc6 {[%clk 0:00:23]} 36. Be3+ {[%clk 0:01:20]}  b6 {[%clk 0:00:24]} 37. a3 {[%clk 0:01:14]}  Rf7 {[%clk 0:00:23]} 38. Bd3 {[%clk 0:01:05]}  a4 {[%clk 0:00:18]} 39. Ka2 {[%clk 0:01:02]}  Qf6 {[%clk 0:00:16]} 40. Qxf6 {[%clk 0:00:59]}  Rxf6 {[%clk 0:00:16]} 41. Bb5 {[%clk 0:00:56]}  Rf3 {[%clk 0:00:15]} 42. Bd4 {[%clk 0:00:55]}  Rh3 {[%clk 0:00:16]} 43. Be5 {[%clk 0:00:55]}  g4 {[%clk 0:00:15]} 44. Bxa4 {[%clk 0:00:53]}  h5 {[%clk 0:00:15]} 45. Bd7 {[%clk 0:00:47]}  Re3 {[%clk 0:00:15]} 46. Bg3 {[%clk 0:00:45]}  Kb7 {[%clk 0:00:15]} 47. Kb3 {[%clk 0:00:42]}  Re7 {[%clk 0:00:14]} 48. Bf5 {[%clk 0:00:42]}  Rg7 {[%clk 0:00:14]} 49. Kc2 {[%clk 0:00:37]}  Kc6 {[%clk 0:00:14]} 50. Kd3 {[%clk 0:00:38]}  Rf7 {[%clk 0:00:14]} 51. Bg6 {[%clk 0:00:37]}  Rf3+ {[%clk 0:00:14]} 52. Kd4 {[%clk 0:00:35]}  h4 {[%clk 0:00:10]} 53. Bxh4 {[%clk 0:00:35]}  Rf4+ {[%clk 0:00:10]} 54. Ke3 {[%clk 0:00:34]}  Rf1 {[%clk 0:00:10]} 55. Bg3 {[%clk 0:00:31]}  Kc5 {[%clk 0:00:09]} 56. Bh5 {[%clk 0:00:27]}  Rb1 {[%clk 0:00:08]} 57. Bxg4 {[%clk 0:00:26]}  Rxb2 {[%clk 0:00:09]} 58. h4 {[%clk 0:00:26]}  Rb3 {[%clk 0:00:09]} 59. Be5 {[%clk 0:00:26]}  Rxa3 {[%clk 0:00:09]} 60. h5 {[%clk 0:00:26]}  b5 {[%clk 0:00:10]} 61. h6 {[%clk 0:00:24]}  b4 {[%clk 0:00:08]} 62. h7 {[%clk 0:00:24]}  Ra8 {[%clk 0:00:09]} 63. cxb4+ {[%clk 0:00:22]}  Kxb4 {[%clk 0:00:08]} 64. h8=Q {[%clk 0:00:23]}  Rxh8 {[%clk 0:00:09]} 65. Bxh8 {[%clk 0:00:24]}  Kc4 {[%clk 0:00:09]} 66. Bd4 {[%clk 0:00:23]}  Kb4 {[%clk 0:00:10]} 67. Kf4 {[%clk 0:00:24]}  Kc4 {[%clk 0:00:11]} 68. Ke5 {[%clk 0:00:24]}  Kd3 {[%clk 0:00:11]} 69. Kxd5 {[%clk 0:00:25]}  Kc2 {[%clk 0:00:11]} 70. Bf5+ {[%clk 0:00:26]}  Kd2 {[%clk 0:00:12]} 71. Be4 {[%clk 0:00:25]}  Ke2 {[%clk 0:00:13]} 72. Kc4 {[%clk 0:00:24]}  Kd2 {[%clk 0:00:14]} 73. Bd3 {[%clk 0:00:24]}  Kc1 {[%clk 0:00:15]} 74. Bc3 {[%clk 0:00:23]}  Kd1 {[%clk 0:00:16]} 75. Kd4 {[%clk 0:00:23]}  Kc1 {[%clk 0:00:17]} 76. Bf5 {[%clk 0:00:19]}  Kd1 {[%clk 0:00:17]} 77. Kd3 {[%clk 0:00:19]}  Kc1 {[%clk 0:00:18]} 78. Bg4 {[%clk 0:00:17]}  Kb1 {[%clk 0:00:18]} 79. Bd1 {[%clk 0:00:16]}  Kc1 {[%clk 0:00:19]} 80. Bb3 {[%clk 0:00:16]}  Kb1 {[%clk 0:00:20]} 81. Bd4 {[%clk 0:00:09]}  Kc1 {[%clk 0:00:21]} 82. Kc3 {[%clk 0:00:08]}  Kb1 {[%clk 0:00:22]} 83. Be3 {[%clk 0:00:07]}  Ka1 {[%clk 0:00:22]} 84. Bc1 {[%clk 0:00:06]}  Kb1 {[%clk 0:00:23]} 85. Ba3 {[%clk 0:00:05]}  Ka1 {[%clk 0:00:24]} 86. Be6 {[%clk 0:00:03]}  Kb1 {[%clk 0:00:25]} 87. Bf7 {[%clk 0:00:02]}  Ka1 {[%clk 0:00:26]} 88. Bb2+ {[%clk 0:00:02]}  Kb1 {[%clk 0:00:26]} 89. Bg6+ {[%clk 0:00:02]}  Ka2 {[%clk 0:00:27]} 90. Bf7+ {[%clk 0:00:02]}  Kb1 {[%clk 0:00:28]} 91. Ba3 {[%clk 0:00:03]}  Ka1 {[%clk 0:00:29]} 92. Kb3 {[%clk 0:00:03]}  Kb1 {[%clk 0:00:30]} 93. Bg6+ {[%clk 0:00:04]}  Ka1 {[%clk 0:00:31]} 94. Bb2# {[%clk 0:00:05]} 1-0


[Site "https://www.chess.com"]

[Event "Titled Tuesday Blitz March 21 Late 2023"]
[White "Danielyan, Vahe"]
[Black "Pakleza, Zbigniew"]
[WhiteFideId "13304828"]
[BlackFideId "1119290"]
[WhiteElo "2423"]
[BlackElo "2410"]
[Result "1/2-1/2"]
[Round "02"]
[TimeControl "180+2"]
[Date "2023.03.21"]
[WhiteClock "0:00:20"]
[BlackClock "0:00:15"]

1. d4 {[%clk 0:03:00]}  d6 {[%clk 0:03:00]} 2. c4 {[%clk 0:03:00]}  e5 {[%clk 0:03:00]} 3. Nf3 {[%clk 0:02:58]}  exd4 {[%clk 0:03:00]} 4. Nxd4 {[%clk 0:02:58]}  g6 {[%clk 0:03:00]} 5. Nc3 {[%clk 0:02:58]}  Bg7 {[%clk 0:03:00]} 6. g3 {[%clk 0:02:57]}  Ne7 {[%clk 0:03:01]} 7. Bg2 {[%clk 0:02:57]}  O-O {[%clk 0:03:02]} 8. O-O {[%clk 0:02:58]}  Nd7 {[%clk 0:03:03]} 9. e4 {[%clk 0:02:52]}  Nc6 {[%clk 0:03:00]} 10. Nc2 {[%clk 0:02:51]}  Nb6 {[%clk 0:02:37]} 11. Ne3 {[%clk 0:02:49]}  Re8 {[%clk 0:02:29]} 12. Re1 {[%clk 0:02:48]}  a5 {[%clk 0:02:19]} 13. Ncd5 {[%clk 0:02:48]}  Nd7 {[%clk 0:02:15]} 14. Rb1 {[%clk 0:02:46]}  a4 {[%clk 0:02:14]} 15. Bd2 {[%clk 0:02:45]}  Nc5 {[%clk 0:02:10]} 16. Bc3 {[%clk 0:02:19]}  Nxe4 {[%clk 0:02:05]} 17. Bxg7 {[%clk 0:02:19]}  Kxg7 {[%clk 0:02:06]} 18. Nxc7 {[%clk 0:02:19]}  Qxc7 {[%clk 0:01:51]} 19. Nd5 {[%clk 0:02:20]}  Qa5 {[%clk 0:01:39]} 20. Rxe4 {[%clk 0:02:11]}  Bf5 {[%clk 0:01:33]} 21. Rxe8 {[%clk 0:02:08]}  Rxe8 {[%clk 0:01:34]} 22. Rc1 {[%clk 0:02:08]}  a3 {[%clk 0:01:17]} 23. b4 {[%clk 0:02:05]}  Qd8 {[%clk 0:01:02]} 24. b5 {[%clk 0:02:04]}  Ne5 {[%clk 0:00:57]} 25. Qd4 {[%clk 0:02:04]}  f6 {[%clk 0:00:55]} 26. h3 {[%clk 0:01:59]}  h5 {[%clk 0:00:42]} 27. Rc3 {[%clk 0:01:54]}  Qa5 {[%clk 0:00:38]} 28. f4 {[%clk 0:01:51]}  Nd7 {[%clk 0:00:38]} 29. Re3 {[%clk 0:01:44]}  Rxe3 {[%clk 0:00:33]} 30. Qxe3 {[%clk 0:01:45]}  Qd8 {[%clk 0:00:30]} 31. Qxa3 {[%clk 0:01:43]}  Nc5 {[%clk 0:00:30]} 32. Qc3 {[%clk 0:01:37]}  Be4 {[%clk 0:00:24]} 33. Bxe4 {[%clk 0:01:32]}  Nxe4 {[%clk 0:00:25]} 34. Qe3 {[%clk 0:01:32]}  f5 {[%clk 0:00:23]} 35. Qd4+ {[%clk 0:01:29]}  Kf7 {[%clk 0:00:22]} 36. b6 {[%clk 0:01:28]}  Qa8 {[%clk 0:00:20]} 37. Nc3 {[%clk 0:00:47]}  Nxc3 {[%clk 0:00:19]} 38. Qxc3 {[%clk 0:00:48]}  Qxa2 {[%clk 0:00:20]} 39. Qd4 {[%clk 0:00:48]}  Qb1+ {[%clk 0:00:16]} 40. Kf2 {[%clk 0:00:49]}  Qc2+ {[%clk 0:00:14]} 41. Ke1 {[%clk 0:00:48]}  Qc1+ {[%clk 0:00:14]} 42. Ke2 {[%clk 0:00:48]}  Qc2+ {[%clk 0:00:14]} 43. Ke1 {[%clk 0:00:37]}  Qc1+ {[%clk 0:00:14]} 44. Ke2 {[%clk 0:00:21]}  Qc2+ {[%clk 0:00:15]} 45. Ke3 {[%clk 0:00:21]}  Qc1+ {[%clk 0:00:15]} 46. Ke2 {[%clk 0:00:20]} 1/2-1/2


[Site "https://www.chess.com"]

[Event "Titled Tuesday Blitz March 21 Late 2023"]
[White "The_Sherman_Variation"]
[Black "Bolourchifard, Farzad"]
[BlackFideId "12510084"]
[WhiteElo "2548"]
[BlackElo "2317"]
[Result "0-1"]
[Round "02"]
[TimeControl "180+2"]
[Date "2023.03.21"]
[WhiteClock "0:01:59"]
[BlackClock "0:01:24"]

1. g3 {[%clk 0:03:00]}  d5 {[%clk 0:03:00]} 2. Bg2 {[%clk 0:03:00]}  Nf6 {[%clk 0:03:00]} 3. Nf3 {[%clk 0:03:00]}  Bf5 {[%clk 0:03:01]} 4. d3 {[%clk 0:02:59]}  e6 {[%clk 0:03:00]} 5. O-O {[%clk 0:02:59]}  Be7 {[%clk 0:03:01]} 6. b3 {[%clk 0:02:57]}  c5 {[%clk 0:03:00]} 7. Bb2 {[%clk 0:02:57]}  Nc6 {[%clk 0:03:01]} 8. Nbd2 {[%clk 0:02:57]}  O-O {[%clk 0:03:00]} 9. Re1 {[%clk 0:02:58]}  Bg6 {[%clk 0:03:00]} 10. e4 {[%clk 0:02:57]}  d4 {[%clk 0:02:57]} 11. Nh4 {[%clk 0:02:55]}  Nd7 {[%clk 0:02:55]} 12. Rf1 {[%clk 0:02:54]}  Bxh4 {[%clk 0:02:55]} 13. gxh4 {[%clk 0:02:54]}  Qxh4 {[%clk 0:02:56]} 14. f4 {[%clk 0:02:51]}  Bh5 {[%clk 0:02:54]} 15. Qe1 {[%clk 0:02:48]}  Qxe1 {[%clk 0:02:54]} 16. Raxe1 {[%clk 0:02:49]}  e5 {[%clk 0:02:48]} 17. a3 {[%clk 0:02:47]}  b5 {[%clk 0:02:46]} 18. fxe5 {[%clk 0:02:44]}  Ndxe5 {[%clk 0:02:39]} 19. b4 {[%clk 0:02:43]}  cxb4 {[%clk 0:02:19]} 20. axb4 {[%clk 0:02:44]}  Rfd8 {[%clk 0:01:58]} 21. Nb3 {[%clk 0:02:39]}  f6 {[%clk 0:01:52]} 22. Nc5 {[%clk 0:02:17]}  Bf7 {[%clk 0:01:31]} 23. Bh3 {[%clk 0:02:16]}  Nxb4 {[%clk 0:01:29]} 24. Ne6 {[%clk 0:02:16]}  Bxe6 {[%clk 0:01:27]} 25. Bxe6+ {[%clk 0:02:17]}  Kh8 {[%clk 0:01:26]} 26. Bb3 {[%clk 0:02:18]}  a5 {[%clk 0:01:26]} 27. Ba3 {[%clk 0:02:16]}  a4 {[%clk 0:01:23]} 28. Bxb4 {[%clk 0:02:04]}  axb3 {[%clk 0:01:24]} 29. cxb3 {[%clk 0:01:59]}  Nxd3 {[%clk 0:01:24]} 0-1


[Site "https://www.chess.com"]

[Event "Titled Tuesday Blitz March 21 Late 2023"]
[White "Holt, Conrad"]
[Black "Mortazavi, Ali"]
[WhiteFideId "2034387"]
[BlackFideId "401323"]
[WhiteElo "2592"]
[BlackElo "2339"]
[Result "1-0"]
[Round "02"]
[TimeControl "180+2"]
[Date "2023.03.21"]
[WhiteClock "0:00:04"]
[BlackClock "0:00:01"]

1. d4 {[%clk 0:03:00]}  Nf6 {[%clk 0:02:59]} 2. c4 {[%clk 0:03:01]}  g6 {[%clk 0:03:00]} 3. Nc3 {[%clk 0:03:01]}  Bg7 {[%clk 0:03:01]} 4. e4 {[%clk 0:03:01]}  O-O {[%clk 0:03:01]} 5. Nf3 {[%clk 0:03:02]}  d6 {[%clk 0:03:02]} 6. h3 {[%clk 0:03:03]}  e5 {[%clk 0:03:01]} 7. dxe5 {[%clk 0:03:00]}  dxe5 {[%clk 0:03:00]} 8. Qxd8 {[%clk 0:03:01]}  Rxd8 {[%clk 0:03:00]} 9. Bg5 {[%clk 0:03:02]}  c6 {[%clk 0:03:00]} 10. Nxe5 {[%clk 0:03:02]}  Re8 {[%clk 0:02:57]} 11. O-O-O {[%clk 0:03:02]}  Na6 {[%clk 0:02:46]} 12. Nf3 {[%clk 0:02:58]}  Nc5 {[%clk 0:02:33]} 13. e5 {[%clk 0:02:58]}  Nfe4 {[%clk 0:02:32]} 14. Nxe4 {[%clk 0:02:57]}  Nxe4 {[%clk 0:02:32]} 15. Be3 {[%clk 0:02:58]}  Bf8 {[%clk 0:02:02]} 16. Bd3 {[%clk 0:02:53]}  Nc5 {[%clk 0:02:02]} 17. Bc2 {[%clk 0:02:52]}  Be6 {[%clk 0:02:00]} 18. Rd4 {[%clk 0:02:28]}  b5 {[%clk 0:01:55]} 19. cxb5 {[%clk 0:02:28]}  cxb5 {[%clk 0:01:56]} 20. Kb1 {[%clk 0:02:27]}  Rac8 {[%clk 0:01:51]} 21. Ng5 {[%clk 0:02:18]}  Rc7 {[%clk 0:01:33]} 22. Nxe6 {[%clk 0:02:18]}  Nxe6 {[%clk 0:01:33]} 23. Rd5 {[%clk 0:02:14]}  Rec8 {[%clk 0:01:32]} 24. Rc1 {[%clk 0:02:01]}  Bc5 {[%clk 0:01:19]} 25. Bxc5 {[%clk 0:01:52]}  Rxc5 {[%clk 0:01:19]} 26. Rxc5 {[%clk 0:01:44]}  Rxc5 {[%clk 0:01:20]} 27. Re1 {[%clk 0:01:42]}  g5 {[%clk 0:01:13]} 28. g3 {[%clk 0:01:36]}  Kg7 {[%clk 0:01:08]} 29. Re4 {[%clk 0:01:12]}  Rd5 {[%clk 0:01:04]} 30. Kc1 {[%clk 0:01:10]}  Nc5 {[%clk 0:00:48]} 31. Re3 {[%clk 0:01:07]}  Ne6 {[%clk 0:00:48]} 32. Bb3 {[%clk 0:01:06]}  Rc5+ {[%clk 0:00:48]} 33. Kd2 {[%clk 0:01:06]}  Nd4 {[%clk 0:00:46]} 34. Kd3 {[%clk 0:00:41]}  Nf5 {[%clk 0:00:32]} 35. Re1 {[%clk 0:00:36]}  h5 {[%clk 0:00:30]} 36. e6 {[%clk 0:00:33]}  fxe6 {[%clk 0:00:30]} 37. Bxe6 {[%clk 0:00:29]}  Nd6 {[%clk 0:00:30]} 38. Bb3 {[%clk 0:00:25]}  Rf5 {[%clk 0:00:25]} 39. Re7+ {[%clk 0:00:22]}  Kf8 {[%clk 0:00:21]} 40. Re2 {[%clk 0:00:15]}  a5 {[%clk 0:00:21]} 41. Be6 {[%clk 0:00:13]}  Rc5 {[%clk 0:00:21]} 42. Kd4 {[%clk 0:00:12]}  Rc1 {[%clk 0:00:19]} 43. Kd5 {[%clk 0:00:11]}  Ne8 {[%clk 0:00:18]} 44. Ke5 {[%clk 0:00:08]}  Rc5+ {[%clk 0:00:16]} 45. Kd4 {[%clk 0:00:08]}  Rc1 {[%clk 0:00:16]} 46. a3 {[%clk 0:00:08]}  Kg7 {[%clk 0:00:14]} 47. Bf5 {[%clk 0:00:08]}  Nd6 {[%clk 0:00:13]} 48. Bd3 {[%clk 0:00:09]}  Kf6 {[%clk 0:00:13]} 49. Rc2 {[%clk 0:00:08]}  Rd1 {[%clk 0:00:13]} 50. Ke3 {[%clk 0:00:07]}  Re1+ {[%clk 0:00:13]} 51. Re2 {[%clk 0:00:06]}  Rc1 {[%clk 0:00:12]} 52. Kd2 {[%clk 0:00:07]}  Rh1 {[%clk 0:00:12]} 53. Kc3 {[%clk 0:00:04]}  Rxh3 {[%clk 0:00:11]} 54. Kd4 {[%clk 0:00:04]}  h4 {[%clk 0:00:11]} 55. gxh4 {[%clk 0:00:04]}  gxh4 {[%clk 0:00:10]} 56. Rd2 {[%clk 0:00:04]}  Nf7 {[%clk 0:00:09]} 57. Bxb5 {[%clk 0:00:04]}  Rf3 {[%clk 0:00:07]} 58. Ke4 {[%clk 0:00:04]}  Rf5 {[%clk 0:00:06]} 59. Bf1 {[%clk 0:00:04]}  Ng5+ {[%clk 0:00:07]} 60. Ke3 {[%clk 0:00:04]}  Rf3+ {[%clk 0:00:06]} 61. Ke2 {[%clk 0:00:04]}  h3 {[%clk 0:00:07]} 62. Rd6+ {[%clk 0:00:03]}  Kg7 {[%clk 0:00:06]} 63. Rd7+ {[%clk 0:00:03]}  Kg6 {[%clk 0:00:05]} 64. Rd6+ {[%clk 0:00:03]}  Kh5 {[%clk 0:00:05]} 65. Rd8 {[%clk 0:00:04]}  Rb3 {[%clk 0:00:04]} 66. Rh8+ {[%clk 0:00:04]}  Kg4 {[%clk 0:00:05]} 67. Kd1 {[%clk 0:00:04]}  Rxb2 {[%clk 0:00:05]} 68. f4 {[%clk 0:00:04]}  Kxf4 {[%clk 0:00:02]} 69. Bxh3 {[%clk 0:00:04]}  Nxh3 {[%clk 0:00:01]} 70. Rxh3 {[%clk 0:00:04]}  Ke4 {[%clk 0:00:01]} 71. Kc1 {[%clk 0:00:04]} 1-0


[Site "https://www.chess.com"]